fUSD/lending_fUSD_20260527
["ID","MTS","AMOUNT","RATE_DAILY","PERIOD"]
[423078326,1779826240000,-3257.57726239,0.000295,51]
[423078335,1779826240000,-4019.9652642,0.000295,51]
[423078333,1779826240000,-3760.92509302,0.000295,51]
[423078408,1779826241000,-197.0,0.00032578,30]
[423078412,1779826241000,-151.0,0.00032578,30]
[423078409,1779826241000,-234.0,0.00032578,30]
[423078413,1779826241000,-328.0,0.00032578,30]
[423078418,1779826241000,-513.0,0.00032657,10]
[423078407,1779826241000,-198.0,0.00032578,30]
[423078415,1779826241000,-158.0,0.00032578,30]
[423078417,1779826241000,-157.0,0.00032578,30]
[423078416,1779826241000,-166.0,0.00032578,30]
[423078406,1779826241000,-157.0,0.00032578,30]
[423078411,1779826241000,-154.0,0.00032578,30]
[423078419,1779826241000,-2434.07361845,0.0003283,2]
[423078410,1779826241000,-296.0,0.00032578,30]
[423078432,1779826241000,-720.62,0.00033115,30]
[423078421,1779826241000,-176.2207629,0.00033004,2]
[423078420,1779826241000,-330.0,0.00032854,26]
[423078422,1779826241000,-268.18,0.00021273,2]
[423078424,1779826241000,-114.6352833,0.00033004,2]
[423078423,1779826241000,-23.7792371,0.00033004,2]
[423078425,1779826241000,-427.66958632,0.00033004,2]
[423078426,1779826241000,-812.69513038,0.00033004,2]
[423078431,1779826241000,-5050.9044683,0.00033093,2]
[423078437,1779826241000,-150.0,0.0003351,7]
[423078435,1779826241000,-151.0,0.000334,7]
[423078427,1779826241000,-1224.0,0.00033004,2]
[423078430,1779826241000,-152.0,0.00033015,3]
[423078398,1779826241000,-157.0,0.00031912,5]
[423078414,1779826241000,-167.0,0.00032578,30]
[423078405,1779826241000,-739.4,0.0003221,5]
[423078386,1779826241000,-197.0,0.00031578,30]
[423078402,1779826241000,-720.62,0.00032108,30]
[423078433,1779826241000,-3801.94086976,0.00033126,90]
[423078377,1779826241000,-305.45,0.00031126,120]
[423078375,1779826241000,-200.0,0.00031096,2]
[423078372,1779826241000,-172.80446262,0.00030936,5]
[423078376,1779826241000,-720.62,0.00031101,7]
[423078374,1779826241000,-273.12,0.00031096,2]
[423078373,1779826241000,-300.39542483,0.00030936,5]
[423078379,1779826241000,-3663.4058853,0.00031358,72]
[423078390,1779826241000,-154.0,0.00031578,30]
[423078391,1779826241000,-151.0,0.00031578,30]
[423078381,1779826241000,-487.0,0.0003149,2]
[423078380,1779826241000,-162.07,0.0003149,2]
[423078392,1779826241000,-328.0,0.00031578,30]
[423078401,1779826241000,-167.32284058,0.00032107,31]
[423078378,1779826241000,-152.0,0.00031167,120]
[423078382,1779826241000,-877.93,0.0003149,2]
[423078388,1779826241000,-296.0,0.00031578,30]
[423078387,1779826241000,-234.0,0.00031578,30]
[423078385,1779826241000,-198.0,0.00031578,30]
[423078397,1779826241000,-150.0,0.00031912,5]
[423078393,1779826241000,-167.0,0.00031578,30]
[423078396,1779826241000,-157.0,0.00031578,30]
[423078395,1779826241000,-166.0,0.00031578,30]
[423078394,1779826241000,-158.0,0.00031578,30]
[423078404,1779826241000,-305.0,0.0003221,5]
[423078399,1779826241000,-200.0,0.00032055,2]
[423078403,1779826241000,-160.96,0.00032136,2]
[423078400,1779826241000,-1692.758,0.00032107,31]
[423078383,1779826241000,-4533.69630372,0.00031554,74]
[423078428,1779826241000,-1319.723,0.00033004,2]
[423078384,1779826241000,-157.0,0.00031578,30]
[423078436,1779826241000,-150.0,0.0003351,7]
[423078468,1779826241000,-67623.74671416,0.00034,2]
[423078475,1779826241000,-151.0,0.00034,7]
[423078470,1779826241000,-151.0,0.00034,7]
[423078467,1779826241000,-151.0,0.00033999,7]
[423078469,1779826241000,-208.92835186,0.00034,30]
[423078476,1779826241000,-151.0,0.00034,7]
[423078473,1779826241000,-151.0,0.00034,7]
[423078472,1779826241000,-151.0,0.00034,7]
[423078478,1779826241000,-720.62,0.00034121,30]
[423078471,1779826241000,-170.99673,0.00034,7]
[423078479,1779826241000,-150.0,0.0003413,7]
[423078495,1779826241000,-328.0,0.00034578,30]
[423078481,1779826241000,-757.18220095,0.00034216,2]
[423078474,1779826241000,-151.0,0.00034,7]
[423078480,1779826241000,-739.4,0.00034182,7]
[423078484,1779826241000,-554.22179622,0.00034438,2]
[423078485,1779826241000,-225.02,0.00034544,60]
[423078488,1779826241000,-157.0,0.00034578,30]
[423078482,1779826241000,-554.22179622,0.0003422,2]
[423078483,1779826241000,-378.46,0.00034397,7]
[423078489,1779826241000,-198.0,0.00034578,30]
[423078486,1779826241000,-513.0,0.00034551,12]
[423078492,1779826241000,-296.0,0.00034578,30]
[423078491,1779826241000,-234.0,0.00034578,30]
[423078494,1779826241000,-151.0,0.00034578,30]
[423078496,1779826241000,-167.0,0.00034578,30]
[423078493,1779826241000,-154.0,0.00034578,30]
[423078434,1779826241000,-1500.0,0.000334,7]
[423078487,1779826241000,-883.08,0.0003457,7]
[423078466,1779826241000,-151.0,0.00033999,7]
[423078490,1779826241000,-197.0,0.00034578,30]
[423078465,1779826241000,-1134.25,0.00033999,2]
[423078429,1779826241000,-931.0,0.00033004,2]
[423078477,1779826241000,-151.0,0.00034,7]
[423078438,1779826241000,-150.0,0.0003351,7]
[423078442,1779826241000,-157.0,0.00033578,30]
[423078452,1779826241000,-166.0,0.00033578,30]
[423078439,1779826241000,-208.03821619,0.0003351,7]
[423078450,1779826241000,-167.0,0.00033578,30]
[423078441,1779826241000,-150.0,0.0003351,7]
[423078443,1779826241000,-198.0,0.00033578,30]
[423078440,1779826241000,-150.0,0.0003351,7]
[423078445,1779826241000,-234.0,0.00033578,30]
[423078444,1779826241000,-197.0,0.00033578,30]
[423078447,1779826241000,-154.0,0.00033578,30]
[423078446,1779826241000,-296.0,0.00033578,30]
[423078451,1779826241000,-158.0,0.00033578,30]
[423078457,1779826241000,-263.81743996,0.00033726,3]
[423078449,1779826241000,-328.0,0.00033578,30]
[423078453,1779826241000,-157.0,0.00033578,30]
[423078454,1779826241000,-34.66868135,0.0003369,120]
[423078456,1779826241000,-500.0,0.0003369,120]
[423078464,1779826241000,-500.0,0.00033999,7]
[423078461,1779826241000,-5050.9044683,0.00033945,2]
[423078463,1779826241000,-405.29129272,0.00033999,120]
[423078462,1779826241000,-554.22179622,0.00033968,2]
[423078458,1779826241000,-554.22179622,0.00033851,2]
[423078460,1779826241000,-65.67333559,0.00033944,2]
[423078455,1779826241000,-465.33131865,0.0003369,120]
[423078459,1779826241000,-434.32666441,0.00033944,2]
[423078448,1779826241000,-151.0,0.00033578,30]
[423078521,1779826242000,-700.0,0.00035172,2]
[423078537,1779826242000,-605.24124213,0.00035249,2]
[423078517,1779826242000,-350.47,0.0003513,30]
[423078519,1779826242000,-152.0,0.00035149,7]
[423078518,1779826242000,-554.22179622,0.00035144,2]
[423078528,1779826242000,-500.0,0.00035248,7]
[423078524,1779826242000,-500.0,0.00035248,120]
[423078529,1779826242000,-272.06458,0.00035249,7]
[423078525,1779826242000,-500.0,0.00035248,2]
[423078522,1779826242000,-500.0,0.00035248,120]
[423078523,1779826242000,-500.0,0.00035248,30]
[423078526,1779826242000,-500.0,0.00035248,120]
[423078541,1779826242000,-459.22268497,0.00035249,2]
[423078507,1779826242000,-12510.03684798,0.00034967,2]
[423078520,1779826242000,-4792.47972184,0.00035156,112]
[423078509,1779826242000,-14336.0381561,0.00034968,2]
[423078499,1779826242000,-167.0,0.00034578,30]
[423078506,1779826242000,-1860.1591072,0.00034959,2]
[423078531,1779826242000,-151.0,0.00035249,7]
[423078502,1779826242000,-291.25907396,0.00034795,2]
[423078497,1779826242000,-158.0,0.00034578,30]
[423078501,1779826242000,-150.0,0.00034751,7]
[423078500,1779826242000,-2000.0,0.0003474,30]
[423078498,1779826242000,-166.0,0.00034578,30]
[423078504,1779826242000,-3867.86026672,0.00034894,110]
[423078516,1779826242000,-720.62,0.00035128,30]
[423078503,1779826242000,-5050.9044683,0.00034797,2]
[423078508,1779826242000,-2443.57270162,0.00034967,2]
[423078510,1779826242000,-554.22179622,0.00034995,2]
[423078513,1779826242000,-152.0,0.00035065,7]
[423078511,1779826242000,-330.0,0.00035008,37]
[423078512,1779826242000,-152.0,0.00035065,7]
[423078515,1779826242000,-554.22179622,0.00035122,2]
[423078514,1779826242000,-152.0,0.00035107,7]
[423078505,1779826242000,-2434.07361845,0.00034905,2]
[423078533,1779826242000,-619.25900573,0.00035249,2]
[423078527,1779826242000,-500.0,0.00035248,120]
[423078540,1779826242000,-302.1844563,0.00035249,2]
[423078555,1779826242000,-402.92186908,0.00035249,2]
[423078565,1779826242000,-603.30828286,0.00035249,2]
[423078561,1779826242000,-300.09,0.00035249,2]
[423078557,1779826242000,-1263.82495173,0.00035249,2]
[423078558,1779826242000,-527.56699294,0.00035249,2]
[423078564,1779826242000,-594.73329586,0.00035249,2]
[423078566,1779826242000,-484.71261076,0.00035249,2]
[423078556,1779826242000,-401.29262487,0.00035249,2]
[423078559,1779826242000,-865.53028801,0.00035249,2]
[423078563,1779826242000,-309.98994128,0.00035249,2]
[423078568,1779826242000,-350.22574115,0.00035249,2]
[423078567,1779826242000,-730.72821866,0.00035249,2]
[423078570,1779826242000,-1068.30020172,0.00035249,2]
[423078571,1779826242000,-702.45004722,0.00035249,2]
[423078569,1779826242000,-528.42557,0.00035249,2]
[423078532,1779826242000,-382.93960561,0.00035249,2]
[423078562,1779826242000,-382.93960561,0.00035249,2]
[423078554,1779826242000,-700.13372949,0.00035249,2]
[423078560,1779826242000,-316.75118939,0.00035249,2]
[423078550,1779826242000,-493.32888988,0.00035249,2]
[423078534,1779826242000,-452.48121198,0.00035249,2]
[423078530,1779826242000,-151.0,0.00035249,7]
[423078535,1779826242000,-413.68419958,0.00035249,2]
[423078538,1779826242000,-1068.30020172,0.00035249,2]
[423078539,1779826242000,-894.55274135,0.00035249,2]
[423078549,1779826242000,-1096.16608281,0.00035249,2]
[423078543,1779826242000,-300.09,0.00035249,2]
[423078553,1779826242000,-194.41901186,0.00035249,2]
[423078536,1779826242000,-365.43786414,0.00035249,2]
[423078546,1779826242000,-594.73329586,0.00035249,2]
[423078552,1779826242000,-1068.30020172,0.00035249,2]
[423078551,1779826242000,-807.01461645,0.00035249,2]
[423078548,1779826242000,-452.48121198,0.00035249,2]
[423078544,1779826242000,-382.93960561,0.00035249,2]
[423078545,1779826242000,-309.98994128,0.00035249,2]
[423078547,1779826242000,-309.61393411,0.00035249,2]
[423078542,1779826242000,-950.21744792,0.00035249,2]
[423078581,1779826243000,-508.16069683,0.00035249,2]
[423078576,1779826243000,-156.0,0.00035249,2]
[423078575,1779826243000,-150.0,0.00028897,2]
[423078574,1779826243000,-150.0,0.00027521,2]
[423078578,1779826243000,-19.62775877,0.00035249,2]
[423078577,1779826243000,-334.28694124,0.00035249,2]
[423078585,1779826243000,-382.82834115,0.00035249,2]
[423078584,1779826243000,-300.09,0.00035249,2]
[423078582,1779826243000,-195.27899341,0.00035249,2]
[423078586,1779826243000,-413.32993044,0.00035249,2]
[423078587,1779826243000,-792.98526362,0.00035249,2]
[423078579,1779826243000,-482.59131,0.00035249,2]
[423078583,1779826243000,-865.53028801,0.00035249,2]
[423078589,1779826243000,-704.57412241,0.00035249,2]
[423078591,1779826243000,-421.31977694,0.00035249,2]
[423078590,1779826243000,-726.99445071,0.00035249,2]
[423078580,1779826243000,-761.60588296,0.00035249,2]
[423078588,1779826243000,-1068.30020172,0.00035249,2]
[423078645,1779826244000,-931.0,0.00036004,2]
[423078644,1779826244000,-150.0,0.00036004,2]
[423078633,1779826244000,-6000.0,0.000359,13]
[423078634,1779826244000,-1000.0,0.000359,60]
[423078632,1779826244000,-1000.0,0.00035877,60]
[423078629,1779826244000,-2832.8791,0.00035837,2]
[423078625,1779826244000,-5050.9044683,0.00035648,2]
[423078627,1779826244000,-350.47,0.0003567,80]
[423078637,1779826244000,-4022.3269,0.00035965,2]
[423078630,1779826244000,-4022.3269,0.00035837,2]
[423078628,1779826244000,-3000.0,0.000358,13]
[423078631,1779826244000,-3843.7206,0.00035837,2]
[423078640,1779826244000,-151.0,0.00035965,7]
[423078641,1779826244000,-154.585663,0.00035965,7]
[423078635,1779826244000,-321.25806271,0.00035944,120]
[423078638,1779826244000,-3843.7206,0.00035965,2]
[423078643,1779826244000,-211.5548146,0.00036,2]
[423078639,1779826244000,-151.0,0.00035965,7]
[423078642,1779826244000,-150.0,0.00035992,7]
[423078658,1779826244000,-5631.98701052,0.00036129,2]
[423078651,1779826244000,-200.0,0.0003601,10]
[423078649,1779826244000,-222.49659857,0.00036008,7]
[423078657,1779826244000,-500.0,0.00036128,120]
[423078647,1779826244000,-151.0,0.00036008,7]
[423078652,1779826244000,-2832.8791,0.00036093,2]
[423078626,1779826244000,-554.22179622,0.00035652,2]
[423078636,1779826244000,-2832.8791,0.00035965,2]
[423078624,1779826244000,-4651.74933007,0.00035624,2]
[423078599,1779826244000,-200.0,0.0003531,10]
[423078617,1779826244000,-158.0,0.00035578,30]
[423078646,1779826244000,-151.0,0.00036008,7]
[423078592,1779826244000,-1154.04038408,0.00035249,2]
[423078597,1779826244000,-300.09,0.00035249,2]
[423078593,1779826244000,-300.09,0.00035249,2]
[423078596,1779826244000,-969.34830603,0.00035249,2]
[423078595,1779826244000,-1068.30020171,0.00035249,2]
[423078594,1779826244000,-484.57037036,0.00035249,2]
[423078598,1779826244000,-300.09,0.00035249,2]
[423078601,1779826244000,-150.0,0.00035371,7]
[423078609,1779826244000,-154.0,0.00035578,30]
[423078602,1779826244000,-554.22179622,0.00035429,2]
[423078613,1779826244000,-328.0,0.00035578,30]
[423078619,1779826244000,-1000.0,0.00035613,30]
[423078605,1779826244000,-198.0,0.00035578,30]
[423078600,1779826244000,-150.0,0.00035371,7]
[423078603,1779826244000,-305.45,0.00035564,120]
[423078604,1779826244000,-157.0,0.00035578,30]
[423078608,1779826244000,-296.0,0.00035578,30]
[423078606,1779826244000,-197.0,0.00035578,30]
[423078607,1779826244000,-234.0,0.00035578,30]
[423078615,1779826244000,-167.0,0.00035578,30]
[423078623,1779826244000,-2435.58820873,0.00035624,2]
[423078621,1779826244000,-51.69338893,0.00035616,7]
[423078618,1779826244000,-166.0,0.00035578,30]
[423078620,1779826244000,-159.50812857,0.00035616,60]
[423078622,1779826244000,-152.38477093,0.00035616,7]
[423078611,1779826244000,-151.0,0.00035578,30]
[423078650,1779826244000,-200.0,0.00036009,10]
[423078703,1779826244000,-500.0,0.00036314,120]
[423078654,1779826244000,-3843.7206,0.00036093,2]
[423078688,1779826244000,-500.0,0.00036304,7]
[423078685,1779826244000,-1000.0,0.00036304,30]
[423078692,1779826244000,-500.0,0.00036314,120]
[423078696,1779826244000,-500.0,0.00036314,120]
[423078693,1779826244000,-500.0,0.00036314,120]
[423078690,1779826244000,-1134.25,0.00036304,2]
[423078689,1779826244000,-246.33108796,0.00036304,7]
[423078695,1779826244000,-500.0,0.00036314,30]
[423078694,1779826244000,-500.0,0.00036314,30]
[423078691,1779826244000,-1134.25,0.00036304,2]
[423078697,1779826244000,-500.0,0.00036314,120]
[423078702,1779826244000,-500.0,0.00036314,120]
[423078687,1779826244000,-912.5160286,0.00036304,30]
[423078708,1779826244000,-151.0,0.00036315,7]
[423078706,1779826244000,-500.0,0.00036314,7]
[423078710,1779826244000,-500.0,0.00036315,2]
[423078711,1779826244000,-500.0,0.00036315,2]
[423078698,1779826244000,-500.0,0.00036314,120]
[423078699,1779826244000,-500.0,0.00036314,120]
[423078713,1779826244000,-326940.34731195,0.00036315,30]
[423078700,1779826244000,-214.92437032,0.00036314,120]
[423078701,1779826244000,-500.0,0.00036314,120]
[423078709,1779826244000,-151.0,0.00036315,7]
[423078705,1779826244000,-500.0,0.00036314,7]
[423078704,1779826244000,-500.0,0.00036314,120]
[423078712,1779826244000,-151.0,0.00036315,7]
[423078707,1779826244000,-151.0,0.00036315,7]
[423078686,1779826244000,-1000.0,0.00036304,30]
[423078653,1779826244000,-4022.3269,0.00036093,2]
[423078682,1779826244000,-1000.0,0.00036304,30]
[423078655,1779826244000,-200.0,0.000361,30]
[423078659,1779826244000,-720.62,0.00036135,60]
[423078661,1779826244000,-315.06368516,0.00036205,2]
[423078663,1779826244000,-2832.8791,0.00036221,2]
[423078666,1779826244000,-500.0,0.00036241,2]
[423078668,1779826244000,-315.0,0.000363,2]
[423078664,1779826244000,-4022.3269,0.00036221,2]
[423078660,1779826244000,-739.4,0.00036153,30]
[423078662,1779826244000,-350.47,0.0003621,110]
[423078670,1779826244000,-308.0,0.000363,2]
[423078665,1779826244000,-3843.7206,0.00036221,2]
[423078671,1779826244000,-845.21981,0.000363,76]
[423078667,1779826244000,-1000.0,0.000363,2]
[423078669,1779826244000,-200.0,0.000363,2]
[423078683,1779826244000,-1000.0,0.00036304,30]
[423078673,1779826244000,-845.21981,0.000363,76]
[423078672,1779826244000,-845.21982,0.000363,76]
[423078680,1779826244000,-1000.0,0.00036304,30]
[423078681,1779826244000,-1000.0,0.00036304,30]
[423078677,1779826244000,-1000.0,0.00036304,30]
[423078674,1779826244000,-845.21982,0.000363,76]
[423078679,1779826244000,-1000.0,0.00036304,30]
[423078676,1779826244000,-845.21981,0.000363,76]
[423078675,1779826244000,-845.21982,0.000363,76]
[423078678,1779826244000,-1000.0,0.00036304,30]
[423078656,1779826244000,-500.0,0.00036128,120]
[423078684,1779826244000,-1000.0,0.00036304,30]
[423078714,1779826245000,-6405.64218561,0.00036315,30]
[423078735,1779826246000,-3193.83389866,0.00036315,30]
[423078734,1779826246000,-5865.04689121,0.00036315,30]
[423078733,1779826246000,-62410.59503783,0.00036315,30]
[423078729,1779826246000,-150.0,0.00031858,2]
[423078730,1779826246000,-418.0,0.00034335,2]
[423078732,1779826246000,-665.80131739,0.00036315,30]
[423078731,1779826246000,-1936.08,0.0003629,10]
[423078727,1779826246000,-150.0,0.00030341,2]
[423078728,1779826246000,-458.52,0.00031335,2]
[423078736,1779826246000,-535.54295179,0.00036315,30]
[423078742,1779826731000,2000.0,0.0001377,2]
[423078744,1779827062000,194.39,0.00027696,120]
[423078745,1779827084000,-228.6,0.00016438,2]
[423078747,1779827215000,-152.0,0.00016506,2]
[423078748,1779827215000,-197.0233893,0.0001652,2]
[423078753,1779827219000,161.09,0.00013915,2]
[423078752,1779827219000,160.98462427,0.00011596,2]
[423078751,1779827219000,0.10537573,0.00011596,2]
[423078782,1779827431000,-79051.1051,0.00019826,2]
[423078793,1779827431000,-170.06,0.00020518,2]
[423078795,1779827431000,-156.0,0.00021,2]
[423078820,1779827431000,-151.0,0.00022753,2]
[423078813,1779827431000,-151.0,0.00022753,2]
[423078836,1779827431000,-151.0,0.00022753,2]
[423078759,1779827431000,-161.09,0.00016234,2]
[423078805,1779827431000,-445.50024672,0.00022404,2]
[423078781,1779827431000,-1200.0,0.00019825,2]
[423078809,1779827431000,-2071.96,0.00022466,2]
[423078840,1779827431000,-151.0,0.00022753,2]
[423078857,1779827431000,-170.06,0.00023316,2]
[423078778,1779827431000,-170.06,0.00018653,2]
[423078794,1779827431000,-161.09,0.00020873,2]
[423078824,1779827431000,-151.0,0.00022753,2]
[423078846,1779827431000,-151.0,0.00022753,2]
[423078769,1779827431000,-170.06,0.0001772,2]
[423078853,1779827431000,-161.09,0.00023192,2]
[423078800,1779827431000,-209.5,0.00022353,2]
[423078861,1779827431000,-201.21,0.00024658,2]
[423078763,1779827431000,-349.0213396,0.00016419,2]
[423078767,1779827431000,-151.0,0.00016732,2]
[423078773,1779827431000,-174.02439879,0.00018,2]
[423078776,1779827431000,-209.5,0.0001841,2]
[423078790,1779827431000,-2000.0,0.00020428,2]
[423078785,1779827431000,-1280.97587506,0.0002,2]
[423078804,1779827431000,-977.52684859,0.00022404,2]
[423078806,1779827431000,-2599.23177209,0.00022404,2]
[423078830,1779827431000,-151.0,0.00022753,2]
[423078786,1779827431000,-153.0,0.0002,2]
[423078797,1779827431000,-170.06,0.00021451,2]
[423078807,1779827431000,-2069.79,0.00022466,2]
[423078838,1779827431000,-151.0,0.00022753,2]
[423078850,1779827431000,-1014.26008299,0.00023,2]
[423078854,1779827431000,-194.39,0.00023258,2]
[423078770,1779827431000,-326.25593849,0.000179,2]
[423078789,1779827431000,-3225.0,0.00020385,2]
[423078826,1779827431000,-151.0,0.00022753,2]
[423078771,1779827431000,-313.78393062,0.00018,2]
[423078779,1779827431000,-170.06,0.00019585,2]
[423078834,1779827431000,-151.0,0.00022753,2]
[423078788,1779827431000,-209.5,0.00020381,2]
[423078832,1779827431000,-151.0,0.00022753,2]
[423078848,1779827431000,-151.0,0.00022753,2]
[423078865,1779827431000,-500.0,0.00026,2]
[423078815,1779827431000,-151.0,0.00022753,2]
[423078784,1779827431000,-2625.70568121,0.0002,2]
[423078765,1779827431000,-96.9766107,0.0001652,2]
[423078774,1779827431000,-326.25593849,0.0001821,2]
[423078775,1779827431000,-326.25593849,0.0001831,2]
[423078792,1779827431000,-1057.48,0.00020479,2]
[423078822,1779827431000,-151.0,0.00022753,2]
[423078811,1779827431000,-151.0,0.00022753,2]
[423078856,1779827431000,-306.85,0.0002329,2]
[423078863,1779827431000,-170.06,0.00025181,2]
[423078798,1779827431000,-1000.0,0.00021634,2]
[423078859,1779827431000,-170.06,0.00024249,2]
[423078791,1779827431000,-500.0,0.00020479,2]
[423078777,1779827431000,-161.09,0.00018553,2]
[423078772,1779827431000,-760.0,0.00018,2]
[423078828,1779827431000,-151.0,0.00022753,2]
[423078761,1779827431000,-496.2484482,0.000163,2]
[423078766,1779827431000,-151.0,0.00016562,2]
[423078844,1779827431000,-151.0,0.00022753,2]
[423078862,1779827431000,-516.0,0.00025082,2]
[423078783,1779827431000,-823.82680341,0.0001995,15]
[423078799,1779827431000,-154.0,0.00021938,2]
[423078801,1779827431000,-170.06,0.00022383,2]
[423078860,1779827431000,-209.5,0.00024324,2]
[423078764,1779827431000,-209.5,0.00016438,2]
[423078864,1779827431000,-3265.46,0.00025189,7]
[423078796,1779827431000,-3890.2448,0.00021209,2]
[423078842,1779827431000,-151.0,0.00022753,2]
[423078858,1779827431000,-3287.63,0.00023794,7]
[423078768,1779827431000,-150.0,0.00016732,2]
[423078787,1779827431000,-250.0,0.00020013,2]
[423078803,1779827431000,-3637.7411326,0.00022404,2]
[423078818,1779827431000,-151.0,0.00022753,2]
[423078780,1779827431000,-435.0,0.00019825,2]
[423078816,1779827431000,-151.0,0.00022753,2]
[423078906,1779827432000,-500.0,0.00028997,2]
[423078921,1779827432000,-500.0,0.00028997,2]
[423078867,1779827432000,-209.5,0.00026296,2]
[423078874,1779827432000,-170.06,0.00027979,2]
[423078880,1779827432000,-170.06,0.00028912,2]
[423078898,1779827432000,-500.0,0.00028997,2]
[423078912,1779827432000,-500.0,0.00028997,2]
[423078905,1779827432000,-500.0,0.00028997,2]
[423078908,1779827432000,-500.0,0.00028997,2]
[423078915,1779827432000,-500.0,0.00028997,2]
[423078925,1779827432000,-500.0,0.00028997,2]
[423078872,1779827432000,-160.0,0.00027396,2]
[423078875,1779827432000,-51107.10709528,0.00028,2]
[423078899,1779827432000,-500.0,0.00028997,2]
[423078901,1779827432000,-500.0,0.00028997,2]
[423078902,1779827432000,-500.0,0.00028997,2]
[423078914,1779827432000,-500.0,0.00028997,2]
[423078929,1779827432000,-550.0,0.00028997,2]
[423078903,1779827432000,-500.0,0.00028997,2]
[423078869,1779827432000,-170.06,0.00027046,2]
[423078895,1779827432000,-265.00024624,0.00028997,2]
[423078919,1779827432000,-500.0,0.00028997,2]
[423078922,1779827432000,-500.0,0.00028997,2]
[423078876,1779827432000,-540.78054465,0.00028,2]
[423078886,1779827432000,-500.0,0.00028997,2]
[423078893,1779827432000,-500.0,0.00028997,2]
[423078881,1779827432000,-236.99,0.00028962,120]
[423078909,1779827432000,-500.0,0.00028997,2]
[423078913,1779827432000,-500.0,0.00028997,2]
[423078933,1779827432000,-500.0,0.00028999,2]
[423078877,1779827432000,-3238.11,0.00028082,7]
[423078883,1779827432000,-500.0,0.00028997,2]
[423078924,1779827432000,-500.0,0.00028997,2]
[423078928,1779827432000,-500.0,0.00028997,2]
[423078889,1779827432000,-500.0,0.00028997,2]
[423078907,1779827432000,-500.0,0.00028997,2]
[423078937,1779827432000,-528.57,0.00029,2]
[423078934,1779827432000,-528.57,0.00029,2]
[423078870,1779827432000,-516.0,0.00027116,4]
[423078890,1779827432000,-500.0,0.00028997,2]
[423078894,1779827432000,-500.0,0.00028997,2]
[423078939,1779827432000,-116399.26779102,0.00029,2]
[423078882,1779827432000,-500.0,0.00028997,2]
[423078911,1779827432000,-500.0,0.00028997,2]
[423078918,1779827432000,-500.0,0.00028997,2]
[423078897,1779827432000,-500.0,0.00028997,2]
[423078923,1779827432000,-500.0,0.00028997,2]
[423078878,1779827432000,-209.5,0.00028267,2]
[423078879,1779827432000,-1560.04750235,0.000289,2]
[423078887,1779827432000,-500.0,0.00028997,2]
[423078910,1779827432000,-500.0,0.00028997,2]
[423078926,1779827432000,-500.0,0.00028997,2]
[423078932,1779827432000,-500.0,0.00028997,2]
[423078868,1779827432000,-3245.31,0.00026585,7]
[423078931,1779827432000,-500.0,0.00028997,2]
[423078892,1779827432000,-500.0,0.00028997,2]
[423078936,1779827432000,-528.57,0.00029,2]
[423078866,1779827432000,-170.06,0.00026114,2]
[423078896,1779827432000,-500.0,0.00028997,2]
[423078900,1779827432000,-500.0,0.00028997,2]
[423078904,1779827432000,-500.0,0.00028997,2]
[423078916,1779827432000,-500.0,0.00028997,2]
[423078871,1779827432000,-215.42269777,0.00027396,2]
[423078891,1779827432000,-500.0,0.00028997,2]